bitfinex-derivatives/quotes_ETHF0:USTF0_20251211
["timestamp","ask_amount","ask_price","bid_price","bid_amount"]
[1765462551612,3.21010844,3193.1,3193.0,0.11859]
[1765462552010,3.21010844,3193.1,3193.0,0.11059]
[1765462552211,3.21010844,3193.1,3193.0,0.10259]
[1765462552517,3.21010844,3193.1,3193.0,0.09459]
[1765462552817,3.21010844,3193.1,3193.0,0.08659]
[1765462553016,3.21010844,3193.1,3193.0,0.08059]
[1765462553212,4.84423472,3193.1,3192.9,3.93792443]
[1765462553716,4.84423472,3193.1,3192.6,3.93792443]
[1765462554316,4.84423472,3193.1,3192.6,5.54405071]
[1765462554509,4.84423472,3193.1,3193.0,0.15659]
[1765462554711,3.21010844,3193.1,3193.0,0.15659]
[1765462554911,3.21010844,3193.1,3193.0,0.14859]
[1765462555710,3.21010844,3193.1,3193.0,2.20411628]
[1765462557218,3.21010844,3193.1,3193.0,2.19811628]
[1765462557417,3.21010844,3193.1,3193.0,2.19411628]
[1765462557621,3.21010844,3193.1,3193.0,2.18811628]
[1765462557917,3.21010844,3193.1,3193.0,2.18011628]
[1765462558113,0.00230844,3193.1,3193.0,2.17211628]
[1765462558317,0.00230844,3193.1,3193.0,3.80624256]
[1765462558621,0.00230844,3193.1,3193.0,2.16811628]
[1765462559813,0.00230844,3193.1,3193.0,3.80224256]
[1765462560022,0.00230844,3193.1,3193.0,3.79424256]
[1765462560314,3.2078,3193.9,3193.5,0.4214]
[1765462560516,3.2078,3193.9,3193.8,1.79067628]
[1765462560715,3.2078,3193.9,3193.8,1.78767628]
[1765462561415,3.21176004,3193.9,3193.8,1.79143237]
[1765462561720,3.21176004,3193.9,3193.8,0.15730609]
[1765462561918,3.21176004,3193.9,3193.8,1.79143237]
[1765462562117,3.21176004,3193.9,3193.8,1.78443237]
[1765462562321,3.21176004,3193.9,3193.8,5.71191694]
[1765462562523,3.21176004,3193.9,3193.8,5.70091694]
[1765462562717,3.21176004,3193.9,3193.8,5.69491694]
[1765462563121,3.21176004,3193.9,3193.8,4.05179066]
[1765462563613,3.21176004,3193.9,3193.8,0.11930609]
[1765462564222,3.21176004,3193.9,3193.8,0.10730609]
[1765462564621,3.21176004,3193.9,3193.8,1.73543237]
[1765462564822,3.21176004,3193.9,3193.8,1.72943237]
[1765462565022,3.21176004,3193.9,3193.8,1.72043237]
[1765462565426,3.21176004,3193.9,3193.8,1.71143237]
[1765462565725,3.21176004,3193.9,3193.8,0.07130609]
[1765462565927,3.21176004,3193.9,3193.8,0.00375609]
[1765462566225,3.21176004,3193.9,3193.6,3.93248457]
[1765462566523,3.21176004,3193.9,3193.8,0.13925]
[1765462566920,3.21176004,3193.9,3193.8,0.13325]
[1765462567224,3.21176004,3193.9,3193.8,0.12573747]
[1765462568326,3.21176004,3193.9,3193.8,0.11673747]
[1765462569627,3.21176004,3193.9,3193.8,0.10773747]
[1765462569924,3.21176004,3193.9,3193.8,0.09573747]
[1765462571126,3.21176004,3193.9,3193.8,0.08373747]
[1765462571424,4.84588632,3193.9,3193.8,0.07473747]
[1765462571625,4.84588632,3193.9,3193.5,0.00470182]
[1765462571823,4.84588632,3193.9,3193.5,0.46753929]
[1765462572034,4.84588632,3193.9,3193.3,5.56661085]
[1765462572528,3.21176004,3193.9,3193.8,0.15655]
[1765462572720,3.21176004,3193.9,3193.8,0.16001022]
[1765462572921,3.21176004,3193.9,3193.8,0.11561022]
[1765462573126,3.21176004,3193.9,3193.8,0.10961022]
[1765462573325,3.21176004,3193.9,3193.8,0.10161022]
[1765462573720,4.84588632,3193.9,3193.8,0.09361022]
[1765462574032,4.84588632,3193.9,3193.8,1.022e-05]
[1765462574228,4.84588632,3193.9,3193.5,0.00470182]
[1765462574433,1.63412628,3193.7,3193.5,0.00470182]
[1765462574630,1.63412628,3193.7,3193.6,0.15256]
[1765462574936,4.80479246,3193.9,3193.7,0.15056]
[1765462575132,4.80479246,3193.9,3193.7,0.14612451]
[1765462575327,4.80479246,3193.9,3193.7,0.15655]
[1765462575535,4.80479246,3193.9,3193.5,0.00470182]
[1765462576037,4.80479246,3193.9,3193.1,3.93248457]
[1765462576232,3.2078,3193.3,3193.2,0.15658]
[1765462576434,3.2078,3193.3,3193.2,0.13628]
[1765462577732,3.2078,3193.3,3193.2,0.12828]
[1765462577938,3.2078,3193.3,3193.2,0.12428]
[1765462578236,3.2078,3193.3,3193.2,0.11628]
[1765462578438,3.2078,3193.3,3193.2,0.10828]
[1765462578737,3.2078,3193.3,3193.2,0.10228]
[1765462579937,3.2078,3193.3,3193.2,0.09428]
[1765462580237,3.2078,3193.3,3193.2,0.09028]
[1765462580629,1.59699246,3193.9,3193.2,0.08228]
[1765462580833,3.2078,3193.7,3193.5,0.15456]
[1765462581136,3.2078,3193.7,3193.6,0.15056]
[1765462581337,3.2078,3193.7,3193.6,0.14256]
[1765462581525,3.2078,3193.7,3193.6,0.13056]
[1765462581733,3.2078,3193.7,3193.6,0.11856]
[1765462582131,9.2078,3193.7,3193.1,3.93528634]
[1765462582337,4.80083242,3193.2,3193.1,3.93528634]
[1765462582537,4.80083242,3193.2,3192.9,0.00470182]
[1765462582937,4.80083242,3193.2,3192.7,3.93248457]
[1765462583537,4.80083242,3193.2,3193.1,0.15659]
[1765462584042,3.2078,3193.2,3192.8,0.00470182]
[1765462584535,3.2078,3193.2,3193.1,0.15659]
[1765462584944,3.2078,3193.2,3193.0,0.841]
[1765462585640,3.2078,3193.2,3193.1,0.15659]
[1765462586039,3.2078,3193.2,3193.0,0.841]
[1765462586536,3.2078,3193.2,3193.1,0.15659]
[1765462588945,3.2078,3193.2,3193.1,0.09189]
[1765462589144,3.2078,3193.2,3193.1,0.08589]
[1765462589343,3.2078,3193.2,3193.1,0.08389]
[1765462589645,3.2078,3193.2,3193.1,0.07989]
[1765462589847,3.2078,3193.2,3193.1,0.07189]
[1765462590239,3.2078,3193.2,3193.1,0.06789]
[1765462590534,3.2078,3193.2,3193.1,0.15659]
[1765462590738,3.2078,3193.2,3193.1,0.15059]
[1765462590949,3.2078,3193.2,3193.1,0.14259]
[1765462591246,3.2078,3193.2,3193.1,0.13459]
[1765462591446,3.2078,3193.2,3193.1,0.13059]
[1765462591840,3.2078,3193.2,3193.1,0.12659]
[1765462592145,6.1426,3193.2,3193.1,0.12259]
[1765462592340,6.1426,3193.2,3193.1,0.11459]
[1765462592540,6.1426,3193.2,3193.1,0.10859]
[1765462592741,6.1426,3193.2,3193.1,0.10659]
[1765462593044,6.1426,3193.2,3193.1,0.10059]
[1765462593245,6.1426,3193.2,3193.1,0.09259]
[1765462593545,6.1426,3193.2,3193.1,0.08459]
[1765462593748,6.1426,3193.2,3193.1,0.07659]
[1765462594140,6.1426,3193.2,3193.1,0.06859]
[1765462594347,2.9348,3192.9,3192.8,0.00470182]
[1765462594540,2.9348,3192.9,3192.8,1.41720182]
[1765462594737,2.9348,3192.9,3192.8,0.91720182]
[1765462595545,2.9348,3192.9,3192.8,2.52060182]
[1765462597149,2.9348,3192.9,3192.8,1.07380182]
[1765462597847,2.9348,3192.9,3192.8,2.52060182]
[1765462598052,2.9348,3192.9,3192.8,2.02060182]
[1765462600353,2.9348,3192.9,3192.8,5.45308639]
[1765462601955,2.9348,3192.9,3192.8,3.58908457]
[1765462602350,2.9348,3192.9,3192.8,3.58108457]
[1765462602551,2.9348,3192.9,3192.8,3.57508457]
[1765462602754,2.9348,3192.9,3192.8,0.1426]
[1765462602959,2.9348,3192.9,3192.8,0.1346]
[1765462603148,2.9348,3192.9,3192.8,0.1286]
[1765462603455,2.9348,3192.9,3192.8,1.8425]
[1765462603651,2.9348,3192.9,3192.8,1.8365]
[1765462603855,2.9348,3192.9,3192.8,6.91148457]
[1765462604055,2.9348,3192.9,3192.8,5.26098457]
[1765462604256,1.4927,3192.9,3192.8,6.90348457]
[1765462604456,3.2341,3192.9,3192.8,6.89548457]
[1765462604757,3.2341,3192.9,3192.8,6.88748457]
[1765462604955,3.2341,3192.9,3192.8,6.38748457]
[1765462605156,3.2341,3192.9,3192.8,4.73698457]
[1765462605545,3.2341,3192.9,3192.8,4.89358457]
[1765462608158,3.2341,3192.9,3192.8,4.39358457]
[1765462608458,3.2341,3192.9,3192.8,3.58908457]
[1765462609159,3.2341,3192.9,3192.8,5.31098457]
[1765462609354,3.2341,3192.9,3192.8,3.58908457]
[1765462610359,3.2341,3192.9,3192.8,0.1566]
[1765462610760,1.668,3192.1,3192.0,9.41512463]
[1765462610948,1.668,3192.1,3192.0,9.57176463]
[1765462611155,3.4094,3192.1,3192.0,9.57176463]
[1765462611459,3.4094,3192.1,3192.0,3.95044]
[1765462611862,1.668,3192.1,3192.0,3.95044]
[1765462612162,3.41410182,3192.4,3192.3,3.52903]
[1765462612357,0.00470182,3192.4,3192.3,3.52903]
[1765462613162,1.67270182,3192.4,3192.3,3.52903]
[1765462613462,0.00470182,3192.4,3192.3,3.52903]
[1765462622868,0.00470182,3192.4,3192.3,5.12206242]
[1765462623070,3.15252531,3192.6,3192.5,4.49292]
[1765462623266,6.6172,3193.2,3193.1,3.3724]
[1765462623470,6.6172,3193.2,3193.1,3.3644]
[1765462623671,6.6172,3193.2,3193.1,3.3594]
[1765462623969,6.6172,3193.2,3193.1,2.8594]
[1765462624178,3.4094,3192.9,3192.8,5.74899265]
[1765462624476,3.4094,3192.9,3192.8,7.47089265]
[1765462625682,1.668,3192.9,3192.8,7.47089265]
[1765462625974,6.6172,3193.2,3193.1,3.52899]
[1765462626178,4.8758,3193.2,3193.1,3.52899]
[1765462626380,4.8758,3193.2,3193.1,3.02899]
[1765462627584,4.8758,3193.2,3193.1,2.68558]
[1765462628082,3.2078,3193.2,3193.1,2.68558]
[1765462628273,3.2078,3193.2,3193.1,6.62277083]
[1765462628676,3.2078,3193.2,3193.1,2.68558]
[1765462628872,0.00470182,3193.5,3193.0,0.9639]
[1765462628873,1.67270182,3193.5,3193.4,3.52897]
[1765462629074,1.54405913,3193.5,3193.4,3.52897]
[1765462629577,3.2078,3193.6,3193.5,4.48487]
[1765462629778,3.2078,3193.6,3193.5,4.47987]
[1765462629981,3.2078,3193.6,3193.5,4.47287]
[1765462629982,4.8758,3193.6,3193.5,4.47287]
[1765462630182,4.8758,3193.6,3193.5,4.46487]
[1765462630379,3.2078,3193.6,3193.5,6.05790242]
[1765462630576,1.67666186,3193.9,3193.8,3.52895]
[1765462630778,1.67666186,3193.9,3193.8,3.52195]
[1765462630973,3.41806186,3193.9,3193.8,3.51395]
[1765462631179,3.41806186,3193.9,3193.8,3.50595]
[1765462632589,3.41806186,3193.9,3193.8,3.49795]
[1765462632787,3.41806186,3193.9,3193.8,3.48895]
[1765462633090,3.41806186,3193.9,3193.8,3.48495]
[1765462633285,3.41806186,3193.9,3193.8,3.48095]
[1765462633478,1.85176186,3193.9,3193.8,3.47495]
[1765462633883,3.82466186,3193.9,3193.8,3.46695]
[1765462634186,3.82466186,3193.9,3193.8,3.45895]
[1765462634387,3.82466186,3193.9,3193.8,3.45095]
[1765462634589,3.82466186,3193.9,3193.8,3.44295]
[1765462634784,3.82466186,3193.9,3193.8,5.07005595]
[1765462635183,0.00866186,3193.9,3193.8,5.16205595]
[1765462635385,1.85176186,3193.9,3193.8,5.15105595]
[1765462635589,3.82466186,3193.9,3193.8,5.15105595]
[1765462636585,3.82466186,3193.9,3193.8,5.14005595]
[1765462636777,3.82466186,3193.9,3193.8,5.13105595]
[1765462636984,1.85176186,3193.9,3193.8,5.13105595]
[1765462637384,0.00866186,3193.9,3193.8,5.13105595]
[1765462637681,1.77066186,3193.9,3193.8,5.13105595]
[1765462637882,3.52276186,3193.9,3193.8,5.13105595]
[1765462638082,1.77066186,3193.9,3193.8,5.11905595]
[1765462638278,1.77066186,3193.9,3193.8,5.11605595]
[1765462638593,1.77066186,3193.9,3193.8,5.10705595]
[1765462638888,0.00866186,3193.9,3193.8,5.09505595]
[1765462639189,0.00866186,3193.9,3193.8,5.08905595]
[1765462639386,0.00866186,3193.9,3193.8,5.08005595]
[1765462639592,0.00866186,3193.9,3193.8,5.06805595]
[1765462639892,0.00866186,3193.9,3193.8,5.05605595]
[1765462640192,0.00866186,3193.9,3193.8,5.04705595]
[1765462640587,0.00866186,3193.9,3193.8,5.03805595]
[1765462641593,0.00866186,3193.9,3193.8,5.02905595]
[1765462642794,0.00866186,3193.9,3193.8,5.02305595]
[1765462642994,0.00866186,3193.9,3193.8,5.01705595]
[1765462643395,0.00866186,3193.9,3193.8,5.00905595]
[1765462644801,0.00866186,3193.9,3193.8,5.00305595]
[1765462645093,0.00866186,3193.9,3193.8,4.99805595]
[1765462645292,0.00866186,3193.9,3193.8,4.99205595]
[1765462646497,0.00866186,3193.9,3193.8,4.98605595]
[1765462646693,0.00866186,3193.9,3193.8,4.98005595]
[1765462647093,0.00866186,3193.9,3193.8,4.97205595]
[1765462647293,0.00866186,3193.9,3193.8,4.96405595]
[1765462647495,0.00866186,3193.9,3193.8,4.95605595]
[1765462647794,0.00866186,3193.9,3193.8,4.95005595]
[1765462647994,0.00866186,3193.9,3193.8,3.30895]
[1765462648293,0.00866186,3193.9,3193.8,4.94205595]
[1765462648494,0.00866186,3193.9,3193.8,8.87786018]
[1765462649397,0.00866186,3193.9,3193.8,8.86786018]
[1765462649590,0.00866186,3193.9,3193.8,8.86186018]
[1765462649790,0.00866186,3193.9,3193.8,8.85386018]
[1765462650097,0.00866186,3193.9,3193.8,8.84586018]
[1765462650401,1.61456186,3193.9,3193.8,8.84586018]
[1765462650694,3.25426186,3193.9,3193.8,8.84586018]
[1765462650895,3.25426186,3193.9,3193.8,4.91005595]
[1765462651296,3.25426186,3193.9,3193.8,4.90205595]
[1765462651695,1.61456186,3193.9,3193.8,8.83386018]
[1765462651895,1.61456186,3193.9,3193.8,8.82586018]
[1765462652090,0.00866186,3193.9,3193.8,8.82186018]
[1765462652295,0.00866186,3193.9,3193.8,8.81986018]
[1765462652491,1.61456186,3193.9,3193.8,7.18675423]
[1765462652687,1.61456186,3193.9,3193.8,8.81386018]
[1765462652891,1.61456186,3193.9,3193.8,8.80586018]
[1765462653195,0.00866186,3193.9,3193.8,4.86205595]
[1765462654496,0.00866186,3193.9,3193.8,4.85205595]
[1765462654693,3.2078,3194.5,3194.4,3.17912]
[1765462654897,3.2078,3194.5,3194.4,4.80822595]
[1765462655197,3.2078,3194.5,3194.4,4.80222595]
[1765462655402,3.2078,3194.5,3194.4,4.79622595]
[1765462655594,6.4534,3194.9,3194.8,3.0226]
[1765462655789,6.4534,3194.9,3194.8,3.02000945]
[1765462655996,6.45674053,3194.9,3194.8,3.01400945]
[1765462656196,6.45674053,3194.9,3194.8,1.00780945]
[1765462656700,6.45674053,3194.9,3194.8,0.16430945]
[1765462656904,6.45674053,3194.9,3194.8,0.15990945]
[1765462657105,3.2456,3194.8,3194.7,4.65570595]
[1765462657302,3.21114053,3194.9,3194.8,2.861]
[1765462657600,6.45674053,3194.9,3194.8,2.861]
[1765462658501,6.45674053,3194.9,3194.8,3.0175]
[1765462659002,6.45674053,3194.9,3194.8,1.5113]
[1765462659203,6.45674053,3194.9,3194.8,0.1565]
[1765462665397,3.24894053,3194.9,3194.8,0.1565]
[1765462665702,6.45674053,3194.9,3194.8,0.1565]
[1765462666697,3.24894053,3194.9,3194.8,0.1565]
[1765462666897,6.45674053,3194.9,3194.8,0.1565]
[1765462671504,6.45674053,3194.9,3194.8,1.8376]
[1765462671807,6.45674053,3194.9,3194.8,0.1565]
[1765462674502,6.45674053,3194.9,3194.8,1.8376]
[1765462674702,6.45674053,3194.9,3194.8,3.5631]
[1765462674913,6.45674053,3194.9,3194.8,1.8376]
[1765462675310,6.45674053,3194.9,3194.8,0.1565]
[1765462680117,8.08984648,3194.9,3194.8,0.1565]
[1765462681018,2.9154,3194.0,3193.9,8.41152463]
[1765462681221,6.1232,3194.2,3194.1,2.94674]
[1765462681412,4.6823,3194.2,3194.1,2.94674]
[1765462681608,6.1232,3194.2,3194.1,2.94674]
[1765462682615,6.1232,3194.2,3194.1,0.15654]
[1765462683116,6.1232,3194.2,3194.1,1.57734]
[1765462684721,6.1232,3194.2,3194.1,2.94674]
[1765462686018,2.9154,3194.2,3194.1,2.94674]
[1765462687222,4.6823,3194.3,3194.2,2.94673]
[1765462687526,3.2078,3194.3,3194.2,2.94673]
[1765462687824,4.6823,3194.3,3194.2,2.94673]
[1765462688227,6.1232,3194.3,3194.2,2.94673]
[1765462688833,4.6823,3194.3,3194.2,2.94673]
[1765462690435,6.1232,3194.3,3194.2,2.94673]
[1765462690736,7.75630595,3194.3,3194.2,0.15653]
[1765462692030,7.75630595,3194.3,3194.2,3.35533]
[1765462692031,3.2078,3194.3,3194.2,3.35533]
[1765462692233,3.56944053,3194.9,3194.8,3.5723]
[1765462692436,3.56944053,3194.9,3194.8,5.20540595]
[1765462692729,1.72844053,3194.9,3194.8,3.5723]
[1765462692927,3.56944053,3194.9,3194.8,1.8451]
[1765462693125,3.56944053,3194.9,3194.8,3.5723]
[1765462693529,3.56944053,3194.9,3194.8,1.8451]
[1765462693729,8.41034648,3194.9,3194.8,0.1565]
[1765462694835,6.77724053,3194.9,3194.8,0.1565]
[1765462695324,6.77724053,3194.9,3194.8,2.0349]
[1765462695731,6.77724053,3194.9,3194.8,3.9733]
[1765462695939,3.56944053,3194.9,3194.8,2.0349]
[1765462696237,1.72844053,3194.9,3194.8,3.9733]
[1765462696437,1.84074053,3194.9,3194.8,3.9733]
[1765462696636,3.72254053,3194.9,3194.8,3.9733]
[1765462697938,1.84074053,3194.9,3194.8,3.9733]
[1765462699746,3.72254053,3194.9,3194.8,3.9733]
[1765462700440,0.00334053,3194.9,3194.8,3.9733]
[1765462701740,3.72254053,3194.9,3194.8,0.1565]
[1765462702345,3.72254053,3194.9,3194.8,2.0349]
[1765462702643,3.72254053,3194.9,3194.8,3.9733]
[1765462702943,3.72254053,3194.9,3194.8,2.0349]
[1765462703145,3.72254053,3194.9,3194.8,0.1565]
[1765462705539,3.72254053,3194.9,3194.8,1.8124]
[1765462706346,3.72254053,3194.9,3194.8,0.1565]
[1765462706543,6.93034053,3194.9,3194.8,0.1565]
[1765462708851,6.93034053,3194.9,3194.8,1.8124]
[1765462709044,6.93034053,3194.9,3194.8,3.5019]
[1765462709350,6.93034053,3194.9,3194.8,1.8124]
[1765462710051,6.93034053,3194.9,3194.8,3.5019]
[1765462711142,6.93034053,3194.9,3194.8,0.1565]
[1765462716151,3.3183,3194.1,3194.0,7.6704]
[1765462716553,1.6482,3194.1,3194.0,7.6704]
[1765462717655,1.6482,3194.1,3194.0,7.82694]
[1765462718055,4.90983677,3194.6,3194.5,0.15652]
[1765462719657,3.3183,3194.6,3194.5,0.15652]
[1765462722551,3.21114053,3194.9,3194.8,3.3448]
[1765462722751,6.28004053,3194.9,3194.8,0.1565]
[1765462727763,1.4998,3194.1,3194.0,4.3055]
[1765462728262,3.0689,3194.1,3194.0,4.3055]
[1765462728663,1.4998,3194.1,3194.0,4.3055]
[1765462728858,3.0689,3194.1,3194.0,4.46204]
[1765462729666,1.4998,3194.1,3194.0,4.46204]
[1765462730762,3.0689,3194.1,3194.0,4.46204]
[1765462731664,4.7076,3194.4,3194.3,3.34483]
[1765462732070,6.2767,3194.4,3194.3,3.34483]
[1765462737377,6.2767,3194.4,3194.3,0.15653]
[1765462745181,2.6951,3193.9,3193.3,5.62132463]
[1765462745483,5.9029,3193.9,3193.3,5.62132463]
[1765462745776,5.9029,3193.9,3193.2,8.82912463]
[1765462746678,5.9029,3193.9,3193.8,0.16125182]
[1765462749278,2.6951,3193.1,3193.0,2.2104]
[1765462749479,2.6951,3193.1,3193.0,3.5754]
[1765462749877,2.6951,3193.1,3193.0,3.73199]
[1765462750176,1.3452,3193.1,3193.0,3.73199]
[1765462750382,0.00470182,3193.4,3193.3,2.76808]
[1765462750681,1.34990182,3193.4,3193.3,2.76808]
[1765462751081,2.69980182,3193.4,3193.3,2.76808]
[1765462751281,2.69980182,3193.4,3193.3,0.15658]
[1765462753286,2.69980182,3193.4,3193.3,1.45178]
[1765462754886,2.69980182,3193.4,3193.3,2.77158]
[1765462755087,2.69980182,3193.4,3193.3,1.45178]
[1765462755482,2.69980182,3193.4,3193.3,2.77158]
[1765462755985,1.34990182,3193.4,3193.3,2.77158]
[1765462756182,2.65660182,3193.4,3193.3,2.77158]
[1765462758888,1.34990182,3193.4,3193.3,2.77158]
[1765462760701,4.29055622,3193.4,3193.3,0.15658]
[1765462762092,0.00470182,3193.4,3193.3,4.3410344]
[1765462762597,1.29000182,3193.4,3193.3,2.70708]
[1765462762790,2.59670182,3193.4,3193.3,2.70708]
[1765462763499,1.29000182,3193.4,3193.3,2.70708]
[1765462765094,2.59670182,3193.4,3193.3,2.70708]
[1765462772708,4.23065622,3193.4,3193.3,0.15658]
[1765462777510,2.59670182,3193.4,3193.3,0.15658]
[1765462779018,2.1768,3192.9,3192.8,1.0496]
[1765462779223,3.8107544,3192.9,3192.8,1.0496]
[1765462780017,5.3846,3193.1,3193.0,2.92619]
[1765462780215,5.3846,3193.1,3193.0,0.82599]
[1765462780419,5.3846,3193.1,3193.0,0.15659]
[1765462781218,5.3846,3193.1,3192.9,3.93710276]
[1765462781219,2.1643,3193.0,3192.9,3.93710276]
[1765462781415,2.1643,3192.4,3192.3,7.83332463]
[1765462781610,3.80137794,3192.4,3192.3,7.98995463]
[1765462781816,2.16742354,3192.4,3192.3,7.98995463]
[1765462782015,1.05052354,3192.4,3192.3,7.98995463]
[1765462782214,2.16742354,3192.4,3192.3,2.36863]
[1765462784019,2.16742354,3192.4,3192.3,0.15663]
[1765462785219,2.16742354,3192.4,3192.3,2.36863]
[1765462785623,2.16742354,3192.4,3192.3,1.29073]
[1765462786321,2.16742354,3192.4,3192.3,0.15663]
[1765462789924,2.16742354,3192.4,3192.3,1.29073]
[1765462790129,2.16742354,3192.4,3192.3,0.15663]
[1765462796728,3.80137794,3192.4,3192.3,0.15663]
[1765462797423,2.1643,3191.6,3191.5,3.19556]
[1765462797920,1.0474,3191.6,3191.5,3.19556]
[1765462798225,4.2552,3191.7,3191.6,2.36866]
[1765462798822,1.0474,3191.7,3191.6,2.36866]
[1765462799223,7.0060544,3192.1,3192.0,0.15664]
[1765462800124,3.2078,3192.1,3192.0,3.03004]
[1765462800330,4.2552,3192.1,3192.0,3.03004]
[1765462800530,7.0060544,3192.1,3192.0,0.15664]
[1765462801620,5.3721,3192.1,3192.0,0.81804]
[1765462801824,5.3721,3192.1,3192.0,1.95214]
[1765462802024,3.2078,3192.1,3192.0,3.03004]
[1765462803319,5.3721,3192.1,3192.0,1.95214]
[1765462803520,5.3721,3192.1,3192.0,0.15664]
[1765462804121,2.1643,3191.6,3191.5,3.0389]
[1765462804327,5.3721,3191.6,3191.5,3.0389]
[1765462805225,3.2078,3191.6,3191.5,3.0389]
[1765462805425,1.0474,3191.6,3191.5,3.0389]
[1765462805642,1.0474,3191.6,3191.5,3.19556]
[1765462809225,5.3721,3191.6,3191.5,3.19556]
[1765462809436,5.3721,3191.6,3191.5,2.11766]
[1765462809734,5.3721,3191.6,3191.5,3.34716]
[1765462810534,5.3721,3191.6,3191.5,2.11766]
[1765462810933,5.3721,3191.6,3191.5,3.34716]
[1765462811238,5.3721,3191.6,3191.5,0.98356]
[1765462811432,5.3721,3191.6,3191.5,0.15666]
[1765462818838,6.9674463,3191.6,3191.5,0.15666]
[1765462819534,6.9674463,3191.6,3190.5,3.8692]
[1765462819535,1.5953463,3191.3,3191.2,0.15668]
[1765462819740,3.9737463,3191.3,3191.2,0.15668]
[1765462820041,2.3784,3191.3,3191.2,0.15668]
[1765462820543,2.3784,3191.3,3191.2,1.41908]
[1765462820744,2.3784,3191.3,3191.2,0.15668]
[1765462822046,2.3784,3191.3,3191.2,2.65038]
[1765462822348,5.59090182,3191.6,3191.5,0.15666]
[1765462839764,2.2077,3190.7,3190.6,7.84622463]
[1765462840064,5.4155,3190.9,3190.8,2.3816]
[1765462840456,4.2992,3190.9,3190.8,2.3816]
[1765462840962,4.2992,3190.9,3190.8,2.64673592]
[1765462841360,4.2992,3190.9,3190.8,2.3816]
[1765462841565,5.4155,3190.9,3190.8,1.2716]
[1765462841872,5.4155,3190.9,3190.8,2.3971]
[1765462842168,5.4155,3190.9,3190.8,0.1567]
[1765462842368,5.4155,3190.9,3190.8,1.2813]
[1765462842569,5.4155,3190.9,3190.8,2.4068]
[1765462845274,5.4155,3190.9,3190.8,0.1567]
[1765462845868,5.4155,3190.9,3190.8,2.4068]
[1765462847371,5.4155,3190.9,3190.8,0.1567]
[1765462847572,5.4155,3190.9,3190.8,1.2813]
[1765462847872,5.4155,3190.9,3190.8,2.4068]
[1765462848267,5.4155,3190.9,3190.8,1.2813]
[1765462852276,5.4155,3190.9,3190.8,2.4068]
[1765462852476,5.3382,3190.9,3190.8,2.4068]
[1765462853476,5.3382,3190.9,3190.8,1.2813]
[1765462854275,5.3382,3190.9,3190.8,0.1567]
[1765462855177,5.3382,3190.9,3190.8,1.1981]
[1765462856678,5.3382,3190.9,3190.8,0.1567]
[1765462861985,3.2078,3190.9,3190.8,2.1974]
[1765462862186,1.0718,3190.9,3190.8,2.1974]
[1765462862486,2.1033,3190.9,3190.8,2.1974]
[1765462862880,2.1033,3190.9,3190.8,1.1981]
[1765462863184,2.1033,3190.9,3190.8,2.1974]
[1765462864386,5.3111,3191.3,3191.2,2.19738]
[1765462864687,5.3111,3191.3,3191.2,0.15668]
[1765462867282,5.3111,3191.3,3191.2,1.19808]
[1765462867988,5.3111,3191.3,3191.2,0.15668]
[1765462870287,5.3111,3191.3,3191.2,1.19808]
[1765462870493,5.3111,3191.3,3191.2,0.15668]
[1765462878498,2.1033,3191.3,3191.2,0.15668]
[1765462878795,5.3111,3191.3,3191.2,0.15668]
[1765462883103,1.6024,3190.5,3190.4,5.62132463]
[1765462883397,0.8012,3190.1,3190.0,2.60344]
[1765462883598,0.00308544,3190.1,3190.0,2.60344]
[1765462884500,0.00308544,3190.1,3190.0,2.86603102]
[1765462885200,1.63818544,3190.1,3190.0,2.86603102]
[1765462885601,1.63818544,3190.1,3190.0,2.60344]
[1765462886403,1.63818544,3190.1,3190.0,1.69624]
[1765462886998,1.63818544,3190.1,3190.0,0.81814]
[1765462887205,1.63818544,3190.1,3190.0,0.15674]
[1765462889702,1.63818544,3190.1,3190.0,0.70524]
[1765462889903,1.63818544,3190.1,3190.0,2.49054]
[1765462890098,0.00308544,3190.1,3190.0,2.49054]
[1765462890304,0.00308544,3190.1,3190.0,10.12677608]
[1765462890600,0.00308544,3190.1,3190.0,8.49054]
[1765462891009,0.00308544,3190.1,3190.0,10.12677608]
[1765462891312,0.00308544,3190.1,3190.0,8.49054]
[1765462892503,0.00308544,3190.1,3190.0,10.12677608]
[1765462892711,3.2078,3190.5,3190.4,3.57825608]
[1765462893710,3.21175477,3190.5,3190.4,3.58130747]
[1765462896510,0.00395477,3190.5,3190.4,3.58130747]
[1765462900806,3.07967273,3190.8,3190.7,1.8366]
[1765462901006,3.07967273,3190.8,3190.7,3.47283608]
[1765462901406,3.07967273,3190.8,3190.7,1.8366]
[1765462901616,4.4702,3191.3,3191.2,1.6769]
[1765462901809,4.47370134,3191.3,3191.2,1.6769]
[1765462902511,4.47370134,3191.3,3191.2,1.83358]
[1765462902809,3.21130134,3191.3,3191.2,1.83358]
[1765462903814,0.00350134,3191.3,3191.2,1.83358]
[1765462905304,3.2078,3191.7,3191.6,1.6679]
[1765462905505,3.2078,3191.7,3191.6,3.30413608]
[1765462905710,3.799,3191.7,3191.6,3.30413608]
[1765462905912,4.3902,3191.7,3191.6,3.30413608]
[1765462906210,3.2078,3191.7,3191.6,3.30413608]
[1765462906415,3.79125723,3191.7,3191.6,3.30413608]
[1765462906610,3.79125723,3191.7,3191.6,3.46079608]
[1765462907115,3.21025723,3191.7,3191.6,3.46079608]
[1765462907315,0.00245723,3191.7,3191.6,3.46079608]
[1765462909821,0.54775723,3191.7,3191.6,3.46079608]
[1765462911322,0.00245723,3191.7,3191.6,3.46079608]
[1765462913423,0.00245723,3191.7,3191.6,6.66859608]
[1765462913912,0.52425723,3191.7,3191.6,6.66859608]
[1765462914315,0.00245723,3191.7,3191.6,6.66859608]
[1765462916628,2.59029331,3191.7,3191.6,0.15666]
[1765462916820,0.9288,3191.4,3191.3,0.00470182]
[1765462917018,5.77283608,3191.4,3191.3,0.00470182]
[1765462917322,0.6534,3190.6,3190.4,0.00305139]
[1765462917517,0.6534,3190.6,3190.5,1.3335]
[1765462917723,0.6534,3190.6,3190.5,0.66171]
[1765462917921,0.6534,3190.6,3190.5,0.15671]
[1765462920416,0.6534,3190.6,3190.5,0.67441]
[1765462920614,0.6534,3190.6,3190.5,0.15671]